bitfinex-derivatives/quotes_BTCF0:USTF0_20241226
["timestamp","ask_amount","ask_price","bid_price","bid_amount"]
[1735227766898,0.052167,95946.0,95910.0,0.1634963]
[1735227767095,0.052167,95946.0,95911.0,0.6863]
[1735227767297,0.3053,95949.0,95911.0,0.6863]
[1735227767497,0.052166,95948.0,95911.0,0.9863]
[1735227767697,0.0019728,95926.0,95914.0,0.052184]
[1735227767892,0.001,95926.0,95915.0,0.3056]
[1735227768299,0.001,95926.0,95915.0,0.6056]
[1735227768602,0.15523053,95960.0,95934.0,0.052173]
[1735227768803,0.3053,95964.0,95934.0,0.052173]
[1735227768804,0.00092,95955.0,95934.0,0.052173]
[1735227768992,0.3053,95964.0,95934.0,0.052173]
[1735227769191,0.3053,95964.0,95936.0,0.052172]
[1735227769389,0.3053,95964.0,95937.0,0.3214]
[1735227770003,0.001,95960.0,95937.0,0.3214]
[1735227770402,0.001,95960.0,95944.0,0.052167]
[1735227771099,0.001,95960.0,95945.0,0.052167]
[1735227771301,0.001,95960.0,95946.0,0.052167]
[1735227771700,0.001,95960.0,95947.0,0.6893]
[1735227771905,0.001,95964.0,95947.0,0.6893]
[1735227772612,0.2156453,95980.0,95947.0,0.6893]
[1735227772797,0.003,95960.0,95947.0,0.6893]
[1735227773194,0.1664963,95960.0,95947.0,0.3762]
[1735227773499,0.36776,95959.0,95947.0,0.3762]
[1735227773712,0.72626,95959.0,95940.0,0.02276376]
[1735227773897,0.1634963,95950.0,95930.0,0.389]
[1735227774104,0.1634963,95940.0,95931.0,0.30771409]
[1735227774702,0.052166,95948.0,95931.0,0.30771409]
[1735227775105,0.1634963,95950.0,95931.0,0.30771409]
[1735227775698,0.1634963,95950.0,95930.0,0.389]
[1735227776107,0.052168,95945.0,95929.0,0.0230436]
[1735227776413,0.1634963,95940.0,95924.0,0.00156359]
[1735227777713,0.1634963,95950.0,95924.0,0.00456359]
[1735227777903,0.1634963,95950.0,95924.0,0.02508047]
[1735227778104,0.052162,95956.0,95924.0,0.02508047]
[1735227778716,0.052162,95956.0,95924.0,0.02408047]
[1735227779010,0.052162,95956.0,95924.0,0.02508047]
[1735227779913,0.6751,95959.0,95936.0,0.052172]
[1735227780110,0.6741,95959.0,95937.0,0.01019843]
[1735227780308,0.6741,95959.0,95938.0,0.01019843]
[1735227780611,0.6741,95959.0,95939.0,0.01019843]
[1735227780808,0.6741,95959.0,95940.0,0.01019843]
[1735227781012,0.6741,95959.0,95941.0,0.01019843]
[1735227781221,0.6741,95959.0,95942.0,0.40589843]
[1735227781404,0.6741,95959.0,95943.0,0.01019843]
[1735227781598,0.6741,95959.0,95944.0,0.01019843]
[1735227781801,0.6741,95959.0,95945.0,0.01019843]
[1735227782001,0.6741,95959.0,95942.0,0.3957]
[1735227782002,0.6741,95959.0,95946.0,0.01019843]
[1735227782203,0.6741,95959.0,95947.0,0.01019843]
[1735227782500,0.6741,95959.0,95948.0,0.01019843]
[1735227782501,0.6811,95959.0,95948.0,0.01019843]
[1735227782709,0.6811,95959.0,95949.0,0.01019843]
[1735227782905,0.6811,95959.0,95950.0,0.01019843]
[1735227783112,0.6841,95959.0,95951.0,0.01019843]
[1735227783415,0.6841,95959.0,95952.0,0.01019843]
[1735227783608,0.6841,95959.0,95953.0,0.01019843]
[1735227783820,0.6841,95959.0,95954.0,0.01019843]
[1735227784019,0.6841,95959.0,95946.0,0.001]
[1735227784206,0.6841,95959.0,95947.0,0.01020201]
[1735227784509,0.6841,95959.0,95948.0,0.01020201]
[1735227784711,0.6841,95959.0,95949.0,0.01020201]
[1735227784912,0.6841,95959.0,95946.0,0.001]
[1735227784913,0.6841,95959.0,95950.0,0.01020201]
[1735227785209,0.6861,95959.0,95951.0,0.01020201]
[1735227785423,0.6861,95959.0,95952.0,0.01020201]
[1735227785612,0.6861,95959.0,95953.0,0.01020201]
[1735227785809,0.6861,95959.0,95942.0,0.02055193]
[1735227785810,0.6791,95959.0,95954.0,0.01020201]
[1735227786011,0.6871,95959.0,95955.0,0.01020201]
[1735227786224,0.3286,95959.0,95956.0,0.01020201]
[1735227786519,0.3276,95959.0,95957.0,0.01020201]
[1735227786708,0.3276,95959.0,95958.0,0.01020201]
[1735227787210,0.3276,95959.0,95951.0,0.001]
[1735227787211,0.3276,95959.0,95955.0,0.001]
[1735227787709,0.3196,95959.0,95935.0,0.07301911]
[1735227787919,0.3196,95959.0,95957.0,0.001]
[1735227787920,0.3276,95959.0,95957.0,0.001]
[1735227788217,0.3286,95959.0,95957.0,0.001]
[1735227788916,0.3246,95959.0,95957.0,0.001]
[1735227789326,0.3166,95959.0,95936.0,0.052172]
[1735227789618,0.3286,95959.0,95955.0,0.001]
[1735227790118,0.3286,95959.0,95957.0,0.001]
[1735227790620,0.3286,95959.0,95935.0,0.24617663]
[1735227790918,0.3226,95959.0,95935.0,0.24617663]
[1735227791108,0.007,95959.0,95940.0,0.1634963]
[1735227791309,0.3,95979.0,95949.0,0.1634963]
[1735227791517,0.3,95979.0,95950.0,0.6069]
[1735227791719,0.001,95959.0,95950.0,0.6069]
[1735227792422,0.3,95979.0,95950.0,0.6069]
[1735227792615,0.006,95959.0,95957.0,0.24717663]
[1735227792914,0.006,95959.0,95958.0,0.3696]
[1735227793121,0.00556373,95974.0,95958.0,0.3696]
[1735227793621,0.006,95959.0,95958.0,0.3696]
[1735227794120,0.00556373,95974.0,95958.0,0.3696]
[1735227794320,0.00756373,95974.0,95959.0,0.010203]
[1735227794524,0.00756373,95974.0,95960.0,0.010203]
[1735227794724,0.00756373,95974.0,95961.0,0.010203]
[1735227794916,0.00756373,95974.0,95962.0,0.010203]
[1735227795223,0.00756373,95974.0,95958.0,0.61733663]
[1735227795224,0.00756373,95974.0,95960.0,0.1634963]
[1735227795620,0.00756373,95974.0,95958.0,0.61733663]
[1735227795918,0.00556373,95974.0,95958.0,0.61677663]
[1735227796525,0.00556373,95974.0,95960.0,0.0879527]
[1735227797009,0.00556373,95974.0,95960.0,0.0869527]
[1735227797412,0.00556373,95974.0,95963.0,0.24617663]
[1735227797413,0.00656373,95974.0,95963.0,0.24617663]
[1735227797609,0.00656373,95974.0,95967.0,0.052155]
[1735227798011,0.00656373,95974.0,95963.0,0.24617663]
[1735227798214,0.0869527,95973.0,95963.0,0.24617663]
[1735227798716,0.00656373,95974.0,95963.0,0.24617663]
[1735227798717,0.00756373,95974.0,95963.0,0.24617663]
[1735227799112,0.00756373,95974.0,95960.0,0.001]
[1735227799113,0.00756373,95974.0,95967.0,0.3071063]
[1735227799610,0.05971573,95974.0,95967.0,0.3071063]
[1735227800427,0.005,95973.0,95963.0,0.001]
[1735227800722,0.052157,95965.0,95963.0,0.001]
[1735227802117,0.052161,95957.0,95956.0,0.24606782]
[1735227802418,0.005,95965.0,95943.0,0.26681705]
[1735227802419,0.052167,95945.0,95943.0,0.26681705]
[1735227802625,0.052167,95945.0,95943.0,0.24606782]
[1735227802825,0.3092,95944.0,95943.0,0.24606782]
[1735227803909,0.3092,95944.0,95929.0,0.3772]
[1735227804117,0.052168,95943.0,95929.0,0.3772]
[1735227804718,0.05217,95941.0,95929.0,0.3772]
[1735227804916,0.052171,95938.0,95924.0,0.00156359]
[1735227805119,0.052172,95936.0,95924.0,0.00156359]
[1735227805323,0.052172,95936.0,95929.0,0.002]
[1735227805717,0.052172,95936.0,95929.0,0.006]
[1735227806173,0.052172,95936.0,95929.0,0.002]
[1735227806826,0.052169,95943.0,95929.0,0.002]
[1735227807122,0.70976001,95956.0,95929.0,0.004]
[1735227807432,0.1553353,95960.0,95933.0,0.052174]
[1735227807721,0.1553353,95960.0,95934.0,0.3202]
[1735227808028,0.052157,95964.0,95934.0,0.3202]
[1735227808629,0.1553353,95965.0,95936.0,0.052172]
[1735227809327,0.02023483,95969.0,95939.0,0.24606782]
[1735227809520,0.052155,95968.0,95940.0,0.6981]
[1735227809924,0.052156,95966.0,95940.0,0.6981]
[1735227811130,0.052156,95966.0,95940.0,0.7001]
[1735227811322,0.16317641,95950.0,95940.0,0.3845]
[1735227811628,0.052167,95946.0,95940.0,0.3845]
[1735227811862,0.16317641,95950.0,95940.0,0.3845]
[1735227812222,0.16317641,95950.0,95940.0,0.3885]
[1735227812429,0.21534141,95950.0,95940.0,0.3885]
[1735227812627,0.21534141,95950.0,95941.0,0.01022337]
[1735227812834,0.21534141,95950.0,95942.0,0.01022368]
[1735227813034,0.21534141,95950.0,95943.0,0.01022368]
[1735227813220,0.21534141,95950.0,95944.0,0.01022368]
[1735227813421,0.052165,95949.0,95945.0,0.01022368]
[1735227813624,0.052165,95949.0,95946.0,0.01022368]
[1735227813822,0.052165,95949.0,95947.0,0.01022368]
[1735227814027,0.052165,95949.0,95948.0,0.01022368]
[1735227815137,0.16317641,95958.0,95940.0,0.002]
[1735227815327,0.16317641,95958.0,95941.0,0.0102174]
[1735227815328,0.052169,95942.0,95941.0,0.0102174]
[1735227815517,0.052169,95942.0,95940.0,0.002]
[1735227816135,0.05217,95941.0,95936.0,0.01804975]
[1735227816431,0.05217,95940.0,95937.0,0.01021758]
[1735227816628,0.05217,95940.0,95938.0,0.01021758]
[1735227816931,0.05217,95940.0,95930.0,0.26410809]
[1735227817131,0.05217,95940.0,95931.0,0.0102189]
[1735227817330,0.21534641,95940.0,95932.0,0.0102189]
[1735227817527,0.21534641,95940.0,95936.0,0.001]
[1735227817726,0.21534641,95940.0,95937.0,0.0102189]
[1735227818034,0.052167,95946.0,95938.0,0.0102189]
[1735227818242,0.052167,95946.0,95936.0,0.001]
[1735227818243,0.052167,95946.0,95939.0,0.01021441]
[1735227818431,0.052167,95946.0,95940.0,0.01021441]
[1735227818750,0.052167,95946.0,95936.0,0.01960587]
[1735227818933,0.052167,95946.0,95937.0,0.01021458]
[1735227819132,0.16317641,95940.0,95938.0,0.01021458]
[1735227819336,0.05217,95940.0,95939.0,0.01021458]
[1735227819636,0.052174,95933.0,95925.0,0.38636084]
[1735227819831,0.052174,95933.0,95926.0,0.01021682]
[1735227820137,0.052174,95933.0,95927.0,0.01021682]
[1735227820437,0.052174,95933.0,95928.0,0.01021682]
[1735227820641,0.052174,95933.0,95929.0,0.01021682]
[1735227820836,0.052174,95933.0,95930.0,0.01021682]
[1735227821140,0.16317641,95935.0,95931.0,0.01021682]
[1735227821434,0.16317641,95935.0,95932.0,0.01021682]
[1735227821635,0.16317641,95935.0,95925.0,0.38636084]
[1735227821636,0.16317641,95935.0,95929.0,0.002]
[1735227822140,0.13921811,95939.0,95929.0,0.002]
[1735227822343,0.13921811,95939.0,95931.0,0.003]
[1735227822636,0.13921811,95939.0,95931.0,0.004]
[1735227823034,0.08704711,95939.0,95931.0,0.001]
[1735227823238,0.052172,95936.0,95931.0,0.001]
[1735227823638,0.052172,95936.0,95931.0,0.004]
[1735227824438,0.052172,95936.0,95931.0,0.003]
[1735227824639,0.00248373,95974.0,95931.0,0.003]
[1735227824829,0.08704711,95950.0,95932.0,0.6431]
[1735227825931,0.08704711,95950.0,95932.0,0.6441]
[1735227826251,0.052165,95951.0,95932.0,0.6441]
[1735227826441,0.052165,95951.0,95932.0,0.6471]
[1735227826738,0.052165,95951.0,95933.0,0.01021575]
[1735227826940,0.052165,95951.0,95934.0,0.01021575]
[1735227827135,0.052165,95951.0,95932.0,0.64766]
[1735227827334,0.42450979,95965.0,95933.0,0.01021651]
[1735227827335,0.052158,95963.0,95933.0,0.01021651]
[1735227827546,0.12460979,95965.0,95950.0,0.08704711]
[1735227827734,0.12460979,95965.0,95951.0,0.3811]
[1735227827933,0.12552979,95965.0,95951.0,0.3811]
[1735227828132,0.12460979,95965.0,95951.0,0.3811]
[1735227828636,0.12460979,95968.0,95951.0,0.3811]
[1735227828937,0.08704711,95961.0,95951.0,0.3811]
[1735227829536,0.052157,95965.0,95951.0,0.3811]
[1735227830036,0.08704711,95970.0,95951.0,0.3811]
[1735227830242,0.13920111,95970.0,95951.0,0.3811]
[1735227830439,0.052155,95969.0,95951.0,0.3811]
[1735227830642,0.052156,95967.0,95951.0,0.3811]
[1735227830943,0.052156,95967.0,95952.0,0.24606782]
[1735227831135,0.08704711,95962.0,95952.0,0.24606782]
[1735227831335,0.052161,95957.0,95952.0,0.24606782]
[1735227831733,0.052161,95957.0,95953.0,0.0102195]
[1735227831940,0.052158,95963.0,95954.0,0.0102195]
[1735227832139,0.08704711,95970.0,95952.0,0.24606782]
[1735227832140,0.13920111,95970.0,95955.0,0.3131195]
[1735227832448,0.052154,95969.0,95956.0,0.01021739]
[1735227832736,0.052154,95969.0,95955.0,0.3029]
[1735227833241,0.052155,95968.0,95955.0,0.3029]
[1735227833832,0.001,95963.0,95955.0,0.3029]
[1735227834535,0.08704711,95970.0,95955.0,0.3029]
[1735227834536,0.052157,95965.0,95955.0,0.3029]
[1735227834738,0.052157,95965.0,95956.0,0.01021609]
[1735227834936,0.052157,95965.0,95957.0,0.01021609]
[1735227835243,0.052157,95965.0,95958.0,0.01021609]
[1735227835434,0.001,95963.0,95959.0,0.01021609]
[1735227835634,0.001,95963.0,95960.0,0.01021609]
[1735227835838,0.001,95963.0,95955.0,0.3029]
[1735227835839,0.001,95963.0,95961.0,0.01021609]
[1735227836047,0.001,95963.0,95962.0,0.01022163]
[1735227837439,0.053157,95965.0,95962.0,0.01022163]
[1735227837635,0.053157,95965.0,95963.0,0.01022163]
[1735227837839,0.053157,95965.0,95964.0,0.01022163]
[1735227838237,0.052157,95965.0,95964.0,0.01022163]
[1735227839250,0.003,95965.0,95951.0,0.64560845]
[1735227839543,0.003,95965.0,95951.0,0.26450845]
[1735227839544,0.052164,95952.0,95951.0,0.26450845]
[1735227839744,0.052164,95952.0,95951.0,0.27473008]
[1735227839949,0.052164,95952.0,95951.0,0.26450845]
[1735227840845,0.052164,95952.0,95951.0,0.01844063]
[1735227841034,0.052166,95948.0,95934.0,1.0246]
[1735227841239,0.052166,95948.0,95935.0,0.01021407]
[1735227841431,0.08704711,95950.0,95936.0,0.01021407]
[1735227841635,0.08704711,95950.0,95937.0,0.01021342]
[1735227841636,0.052167,95947.0,95937.0,0.01021342]
[1735227841842,0.052167,95947.0,95938.0,0.01021342]
[1735227842045,0.052167,95947.0,95939.0,0.01021342]
[1735227842245,0.052162,95955.0,95940.0,0.01021342]
[1735227842546,0.052165,95949.0,95941.0,0.01021342]
[1735227842743,0.08704711,95950.0,95934.0,1.04303774]
[1735227842744,0.052168,95944.0,95942.0,0.01021342]
[1735227842944,0.052168,95944.0,95943.0,0.01021342]
[1735227843447,0.052173,95935.0,95934.0,0.65940556]
[1735227843650,0.050173,95935.0,95934.0,0.66762075]
[1735227844546,0.050173,95935.0,95934.0,0.24606782]
[1735227844941,0.08704711,95944.0,95924.0,0.00156359]
[1735227845148,0.052178,95926.0,95924.0,0.00156359]
[1735227845341,0.051178,95926.0,95924.0,0.00156359]
[1735227846446,0.051178,95926.0,95924.0,0.00856359]
[1735227847050,0.051178,95926.0,95925.0,0.01022348]
[1735227848340,0.051178,95926.0,95925.0,0.003]
[1735227849140,0.08704711,95940.0,95925.0,0.003]
[1735227849341,0.08704711,95940.0,95926.0,0.3887]
[1735227849749,0.052176,95930.0,95926.0,0.3887]
[1735227850452,0.052177,95928.0,95926.0,0.3887]
[1735227850648,0.052177,95928.0,95926.0,0.3947]
[1735227851351,0.09346718,95937.0,95926.0,0.3947]
[1735227851649,0.09346718,95937.0,95927.0,0.3055]
[1735227851956,0.09346718,95937.0,95928.0,0.01021037]
[1735227852149,0.09346718,95937.0,95927.0,0.3055]
[1735227852345,0.09346718,95937.0,95928.0,0.01021086]
[1735227852657,0.18051429,95950.0,95929.0,0.01021086]
[1735227852947,0.09346718,95950.0,95930.0,0.01021086]
[1735227853146,0.09346718,95950.0,95931.0,0.01021055]
[1735227853345,0.18051429,95950.0,95932.0,0.01021055]
[1735227853548,0.052165,95949.0,95933.0,0.01021055]
[1735227853851,0.052165,95949.0,95934.0,0.01021055]
[1735227854057,0.08704711,95950.0,95935.0,0.01021055]
[1735227854252,0.08704711,95950.0,95936.0,0.01021055]
[1735227854454,0.08704711,95941.0,95937.0,0.01021055]
[1735227854644,0.08704711,95941.0,95932.0,0.001]
[1735227854645,0.08704711,95941.0,95938.0,0.01021055]
[1735227854949,0.08704711,95950.0,95939.0,0.01021055]
[1735227855151,0.052163,95954.0,95940.0,0.34011055]
[1735227855452,0.09346718,95963.0,95941.0,0.01021055]
[1735227855649,0.09346718,95960.0,95942.0,0.01021055]
[1735227855838,0.09346718,95960.0,95940.0,0.41694711]
[1735227856455,0.12460979,95965.0,95950.0,0.08704711]
[1735227856845,0.00156373,95974.0,95950.0,0.08704711]
[1735227857052,0.00156373,95974.0,95951.0,0.3043]
[1735227857350,0.00156373,95974.0,95960.0,0.08704711]
[1735227857543,0.001,95965.0,95960.0,0.08704711]
[1735227857741,0.00156373,95974.0,95960.0,0.08704711]
[1735227857942,0.00056373,95974.0,95960.0,0.08704711]
[1735227858253,0.00056373,95974.0,95961.0,0.24606782]
[1735227858751,0.00356373,95974.0,95961.0,0.54606782]
[1735227858945,0.052141,95995.0,95961.0,0.54606782]
[1735227859146,0.052141,95995.0,95970.0,0.08704711]
[1735227859551,0.18704711,96000.0,95970.0,0.08704711]
[1735227859751,0.052138,95999.0,95971.0,0.3945]
[1735227859946,0.052138,95999.0,95971.0,0.57889357]
[1735227860143,0.003,95974.0,95971.0,0.57889357]
[1735227860354,0.18704711,96000.0,95971.0,0.57889357]
[1735227860744,0.05214,95997.0,95971.0,0.57889357]
[1735227861559,0.05214,95997.0,95974.0,0.18439357]
[1735227861860,0.05214,95997.0,95975.0,0.3088]
[1735227863056,0.05214,95996.0,95975.0,0.3088]
[1735227863262,0.052146,95985.0,95975.0,0.3098]
[1735227864650,0.08704711,95990.0,95975.0,0.001]
[1735227864651,1.5,95989.0,95975.0,0.001]
[1735227865156,0.052151,95977.0,95975.0,0.001]
[1735227865549,0.3974,95976.0,95975.0,0.001]
[1735227865857,0.052158,95963.0,95962.0,0.18439357]
[1735227866060,0.17409422,95972.0,95952.0,0.18439357]
[1735227866259,0.052163,95953.0,95952.0,0.18439357]
[1735227867057,0.052166,95948.0,95947.0,0.24606782]
[1735227867262,0.052173,95934.0,95933.0,0.36852757]
[1735227867464,0.17409422,95943.0,95918.0,0.24579628]
[1735227867759,0.052182,95919.0,95918.0,0.24579628]
[1735227868253,0.052182,95919.0,95918.0,0.43018985]
[1735227868961,0.052182,95919.0,95918.0,0.18439357]
[1735227869360,0.050182,95919.0,95918.0,0.18439357]
[1735227869662,0.052182,95919.0,95918.0,0.18439357]
[1735227870162,0.053182,95919.0,95918.0,0.18439357]
[1735227872756,0.052182,95919.0,95918.0,0.18439357]
[1735227874464,0.052182,95919.0,95908.0,0.00156412]
[1735227874465,0.002,95919.0,95908.0,0.00156412]
[1735227874654,0.17409422,95918.0,95886.0,0.7155]
[1735227874856,0.08704711,95900.0,95886.0,0.7155]
[1735227875060,0.08704711,95900.0,95886.0,0.7308334]
[1735227875459,0.08704711,95900.0,95887.0,0.01020264]
[1735227875658,0.08704711,95900.0,95886.0,0.7313934]
[1735227875858,0.08704711,95900.0,95886.0,0.7348334]
[1735227876164,0.052191,95901.0,95886.0,0.7348334]
[1735227876470,0.052191,95901.0,95886.0,0.7338334]
[1735227876852,0.08704711,95900.0,95886.0,0.7338334]
[1735227877268,0.08704711,95900.0,95887.0,0.002]
[1735227877863,0.052193,95899.0,95887.0,0.002]
[1735227878862,0.00156413,95939.0,95889.0,0.08704711]
[1735227879066,0.052177,95929.0,95894.0,0.052195]
[1735227879368,0.052177,95929.0,95895.0,0.01020414]
[1735227879558,0.052177,95929.0,95896.0,0.01020414]
[1735227879870,0.052177,95929.0,95897.0,0.01020414]
[1735227880069,0.052177,95929.0,95898.0,0.01020414]
[1735227880269,0.052177,95929.0,95899.0,0.01020414]
[1735227880568,0.052177,95929.0,95895.0,0.3]
[1735227880569,0.08704711,95920.0,95900.0,0.01020414]
[1735227880769,0.08704711,95920.0,95901.0,0.01020414]
[1735227880971,0.08704711,95920.0,95902.0,0.01020414]
[1735227881160,0.08704711,95920.0,95903.0,0.01020414]
[1735227881364,0.08704711,95920.0,95904.0,0.01020414]
[1735227881565,0.08704711,95920.0,95905.0,0.01020414]
[1735227881770,0.08704711,95920.0,95896.0,0.01020414]
[1735227881968,0.08704711,95920.0,95897.0,0.01020414]
[1735227882273,0.08704711,95920.0,95898.0,0.01520414]
[1735227882464,0.08704711,95920.0,95904.0,0.006]
[1735227882666,0.052178,95926.0,95905.0,0.32730414]
[1735227883061,0.08704711,95920.0,95905.0,0.3171]
[1735227883279,0.08704711,95920.0,95900.0,0.01020414]
[1735227883575,0.08704711,95910.0,95897.0,0.009]
[1735227883763,0.08704711,95910.0,95896.0,0.005]
[1735227883964,0.08704711,95910.0,95905.0,0.005]
[1735227884577,0.052173,95934.0,95905.0,0.005]
[1735227884578,0.052188,95907.0,95905.0,0.005]
[1735227885077,0.052188,95907.0,95905.0,0.008]
[1735227885276,0.052188,95907.0,95905.0,0.003]
[1735227885865,0.052188,95907.0,95900.0,0.007]
[1735227886079,0.052188,95907.0,95888.0,0.01021042]
[1735227886284,0.053188,95907.0,95889.0,0.01021042]
[1735227886469,0.053188,95907.0,95890.0,0.01021042]
[1735227886776,0.001,95907.0,95891.0,0.01021042]
[1735227886978,0.001,95907.0,95892.0,0.01021042]
[1735227887178,0.001,95907.0,95893.0,0.01021042]
[1735227887369,0.001,95907.0,95894.0,0.01021042]
[1735227887572,0.001,95907.0,95895.0,0.01021042]
[1735227887881,0.001,95907.0,95896.0,0.01021042]
[1735227888079,0.001,95907.0,95900.0,0.001]
[1735227888778,0.001,95907.0,95892.0,0.01021083]
[1735227889080,0.01519546,95928.0,95887.0,0.332989]
[1735227889081,0.08704711,95910.0,95895.0,0.004]
[1735227889373,0.05219,95904.0,95895.0,0.004]
[1735227889677,0.05219,95904.0,95900.0,0.007]
[1735227889873,0.052191,95902.0,95900.0,0.007]
[1735227890078,0.052191,95902.0,95900.0,0.003]
[1735227890782,0.001,95904.0,95887.0,0.015889]
[1735227890970,0.052196,95893.0,95886.0,0.38614]
[1735227891172,0.052196,95893.0,95886.0,0.3855]
[1735227891576,0.052196,95893.0,95887.0,0.3198]
[1735227892275,0.052196,95893.0,95888.0,0.01024464]
[1735227892579,0.052196,95893.0,95889.0,0.01024464]
[1735227892876,0.052196,95893.0,95890.0,0.01024464]
[1735227893084,0.052196,95893.0,95891.0,0.01024464]
[1735227893380,0.052196,95893.0,95892.0,0.01024464]
[1735227895381,0.052196,95893.0,95892.0,0.01128189]
[1735227896071,0.052196,95893.0,95892.0,0.01228189]
[1735227897478,0.052196,95893.0,95892.0,0.01228994]
[1735227897884,0.052196,95893.0,95872.0,0.3714]
[1735227897885,0.052203,95880.0,95872.0,0.3714]
[1735227898381,0.052203,95880.0,95875.0,0.30935683]
[1735227899370,0.052203,95880.0,95872.0,0.3854]
[1735227899575,0.052203,95880.0,95875.0,0.008]
[1735227900379,0.0522,95886.0,95875.0,0.008]
[1735227900580,0.08704711,95890.0,95875.0,0.012]
[1735227901083,0.052202,95882.0,95875.0,0.012]
[1735227901569,0.052202,95881.0,95875.0,0.012]
[1735227906374,0.052199,95887.0,95875.0,0.012]
[1735227906580,0.052196,95893.0,95875.0,0.012]
[1735227906781,0.08704711,95890.0,95875.0,0.012]
[1735227907080,0.0522,95885.0,95875.0,0.012]
[1735227907387,0.08704711,95885.0,95875.0,0.012]
[1735227907582,0.052205,95876.0,95875.0,0.008]
[1735227907777,0.6855,95884.0,95859.0,0.3686]
[1735227907979,0.08704711,95869.0,95852.0,0.36852757]
[1735227908488,0.048214,95859.0,95852.0,0.36852757]
[1735227908797,0.052212,95864.0,95848.0,0.30935683]
[1735227908988,0.052212,95863.0,95859.0,0.009]
[1735227909884,0.13925611,95869.0,95859.0,0.009]
[1735227910191,0.08704711,95869.0,95859.0,0.009]
[1735227910385,0.05221,95867.0,95859.0,0.009]
[1735227911088,0.05221,95867.0,95859.0,0.013]
[1735227911592,0.001,95863.0,95859.0,0.007]
[1735227911888,0.001,95863.0,95859.0,0.008]
[1735227912091,0.05221,95867.0,95859.0,0.003]
[1735227912280,0.08704711,95869.0,95859.0,0.003]
[1735227913580,0.052202,95882.0,95859.0,0.09004711]
[1735227913782,0.08704711,95880.0,95859.0,0.003]
[1735227913984,0.08704711,95870.0,95859.0,0.003]
[1735227914188,0.12460979,95884.0,95859.0,0.003]
[1735227914189,0.13925011,95880.0,95859.0,0.003]
[1735227914379,0.08704711,95880.0,95859.0,0.003]
[1735227915083,0.08704711,95880.0,95859.0,0.002]
[1735227915491,0.052202,95881.0,95859.0,0.002]
[1735227915687,0.08704711,95880.0,95859.0,0.001]
[1735227915992,0.13925011,95880.0,95859.0,0.005]
[1735227916310,0.14025011,95880.0,95859.0,0.005]
[1735227916490,0.001,95880.0,95859.0,0.003]
[1735227916690,0.08704711,95890.0,95861.0,0.052213]
[1735227916885,0.08704711,95890.0,95860.0,0.08704711]
[1735227917093,0.0522,95886.0,95859.0,0.004]
[1735227917399,0.08704711,95870.0,95859.0,0.001]
[1735227917694,0.052209,95868.0,95859.0,0.003]
[1735227917889,0.08704711,95870.0,95859.0,0.003]
[1735227918293,0.052213,95861.0,95859.0,0.003]
[1735227918683,1.0112,95869.0,95859.0,0.006]
[1735227918892,0.052214,95860.0,95859.0,0.006]
[1735227919399,0.052214,95860.0,95859.0,0.004]
[1735227921197,0.01426341,95864.0,95836.0,0.0015653]
[1735227921498,0.12460979,95868.0,95836.0,0.0015653]
[1735227921499,0.08704711,95846.0,95836.0,0.0015653]
[1735227922397,0.13926911,95846.0,95836.0,0.0015653]
[1735227922697,0.052223,95844.0,95836.0,0.0105653]
[1735227923293,0.052223,95844.0,95836.0,0.02494787]
[1735227923500,0.052223,95844.0,95836.0,0.0105653]
[1735227924087,0.052223,95844.0,95836.0,0.0135653]
[1735227924288,0.08804711,95846.0,95836.0,0.0135653]
[1735227924289,0.052224,95841.0,95836.0,0.0135653]
[1735227924488,0.052226,95837.0,95836.0,0.0135653]
[1735227924899,0.052226,95837.0,95836.0,0.0115653]
[1735227925705,0.052226,95837.0,95836.0,0.0095653]
[1735227926205,0.052226,95837.0,95836.0,0.0015653]
[1735227926502,0.7163,95845.0,95825.0,0.3726]
[1735227926707,0.052232,95827.0,95825.0,0.3726]
[1735227927004,0.08704711,95835.0,95818.0,0.3257]
[1735227927199,0.08704711,95828.0,95807.0,1.0089]
[1735227927501,0.08704711,95820.0,95807.0,1.0089]
[1735227927805,0.08604711,95820.0,95807.0,1.0089]
[1735227928198,0.08704711,95840.0,95807.0,1.0089]
[1735227928398,0.001,95828.0,95807.0,1.02469672]
[1735227928904,0.001,95827.0,95825.0,0.005]
[1735227929305,0.001,95828.0,95825.0,0.005]
[1735227929504,0.001,95828.0,95825.0,0.3]
[1735227929704,0.08704711,95860.0,95830.0,0.08704711]
[1735227929896,0.08704711,95860.0,95831.0,0.6524]
[1735227930096,0.052215,95859.0,95831.0,0.6524]
[1735227930704,0.08704711,95850.0,95831.0,0.6524]
[1735227930904,0.001,95840.0,95831.0,0.6524]
[1735227931525,0.08704711,95850.0,95831.0,0.6524]
[1735227931736,0.08704711,95850.0,95831.0,0.6534]
[1735227932021,0.052215,95859.0,95831.0,0.6564]
[1735227932423,0.08704711,95860.0,95831.0,0.6564]
[1735227932625,0.08704711,95850.0,95831.0,0.6564]
[1735227932815,0.08704711,95841.0,95832.0,0.3612]
[1735227933016,0.052225,95839.0,95832.0,0.3612]
[1735227934222,0.052222,95846.0,95832.0,0.3612]
[1735227934418,0.052222,95845.0,95832.0,0.3612]
[1735227934619,0.08704711,95850.0,95832.0,0.3612]
[1735227934819,0.052225,95839.0,95832.0,0.3612]
[1735227935328,0.052225,95839.0,95832.0,0.3652]
[1735227935717,0.052226,95838.0,95832.0,0.3652]
[1735227935920,0.08704711,95842.0,95832.0,0.3652]
[1735227936125,0.052228,95834.0,95832.0,0.3652]
[1735227936626,0.052222,95845.0,95832.0,0.3652]
[1735227936822,0.052225,95840.0,95832.0,0.3652]
[1735227937126,0.052228,95834.0,95832.0,0.3642]
[1735227937314,0.052228,95834.0,95832.0,0.004]
[1735227938819,0.052228,95834.0,95810.0,0.30935683]
[1735227938820,0.052242,95808.0,95807.0,0.24798288]
[1735227940029,0.3682,95819.0,95807.0,0.24798288]
[1735227940030,0.052239,95814.0,95807.0,0.24798288]